Workbook

Sheet HeroPowerUpConfig
A1: ID | B1: HeroLevel | C1: ATKFactor | D1: HPFactor | E1: DEFFactor | F1: SHANBIFactor | G1: EXPFactor | H1: levelUpExp | I1: LevelupBasicPower
A2: int | B2: int | C2: float | D2: float | E2: float | F2: float | G2: float | H2: int | I2: int
M3: 2.83402
A4: ID | B4: 英雄等级 | C4: 攻击力倍率 | D4: 生命倍率 | E4: 防御倍率 | F4: 闪避倍率 | G4: 经验产出倍率 | H4: 升级所需经验值 （-1代表最大等级) | I4: 等级提升提供的评分A1 | J4: 总经验 | K4: =SUM(H5:H103) -> 1171590 | L4: 成长率与经验倍率的放大指数 | M4: 2.47272 | N4: 单人升满r | O4: 100000
A5: 1 | B5: 1 | C5: 1 | D5: 1 | E5: 1 | F5: 1 | G5: 1 | H5: =IF(B5>99,0,ROUND(100*C6^M$4*0.1,0)*10) -> 130 | I5: =ROUND(300*C6,0) -> 330 | J5: 0
A6: 2 | B6: 2 | C6: 1.1 | D6: 1.134 | E6: 1 | F6: 1 | G6: =E6 -> 1 | H6: =IF(B6>99,0,ROUND(100*C7^M$4*0.1,0)*10) -> 160 | I6: =ROUND(300*C7,0) -> 360 | J6: =SUM(H$5:H5) -> 130 | K6: 进入等级 | L6: 10
A7: 3 | B7: 3 | C7: 1.2 | D7: 1.2 | E7: 1 | F7: 1 | G7: 1 | H7: 190 | I7: 390 | J7: =SUM(H$5:H6) -> 290 | K7: 完成等级 | L7: 20
A8: 4 | B8: 4 | C8: 1.3 | D8: 1.334 | E8: 1 | F8: 1 | G8: 1 | H8: 230 | I8: 420 | J8: =SUM(H$5:H7) -> 480 | K8: 总人数 | L8: 3
A9: 5 | B9: 5 | C9: 1.4 | D9: 1.4 | E9: 1 | F9: 1 | G9: 1 | H9: 270 | I9: 450 | J9: =SUM(H$5:H8) -> 710 | K9: 需要经验 | L9: =(VLOOKUP(L7,A:J,10,FALSE)-VLOOKUP(L6,A:J,10,FALSE))*L8 -> 28200
A10: 6 | B10: 6 | C10: 1.5 | D10: 1.534 | E10: 1 | F10: 1 | G10: 1 | H10: 320 | I10: 480 | J10: =SUM(H$5:H9) -> 980
A11: 7 | B11: 7 | C11: 1.6 | D11: 1.6 | E11: 1 | F11: 1 | G11: 1 | H11: 370 | I11: 510 | J11: =SUM(H$5:H10) -> 1300
A12: 8 | B12: 8 | C12: 1.7 | D12: 1.734 | E12: 1 | F12: 1 | G12: 1 | H12: 430 | I12: 540 | J12: =SUM(H$5:H11) -> 1670 | K12: 道具 | L12: ID | M12: 数量
A13: 9 | B13: 9 | C13: 1.8 | D13: 1.8 | E13: 1 | F13: 1 | G13: 1 | H13: 490 | I13: 570 | J13: =SUM(H$5:H12) -> 2100 | K13: 经验水晶粉末 | L13: 2001 | N13: 100 | O13: 对英雄使用后获得100点英雄经验。
A14: 10 | B14: 10 | C14: 1.9 | D14: 1.934 | E14: 1 | F14: 1 | G14: 1 | H14: 560 | I14: 600 | J14: =SUM(H$5:H13) -> 2590 | K14: 经验水晶碎屑 | L14: 2002 | N14: 500 | O14: 对英雄使用后获得500点英雄经验。
A15: 11 | B15: 11 | C15: 2 | D15: 2 | E15: 1 | F15: 1 | G15: 1 | H15: 630 | I15: 630 | J15: =SUM(H$5:H14) -> 3150 | K15: 经验水晶结晶 | L15: 2003 | N15: 2000 | O15: 对英雄使用后获得2000点英雄经验。
A16: 12 | B16: 12 | C16: 2.1 | D16: 2.134 | E16: 1 | F16: 1 | G16: 1 | H16: 700 | I16: 660 | J16: =SUM(H$5:H15) -> 3780 | K16: 经验水晶晶簇 | L16: 2004 | N16: 10000 | O16: 对英雄使用后获得10000点英雄经验。
A17: 13 | B17: 13 | C17: 2.2 | D17: 2.2 | E17: 1 | F17: 1 | G17: 1 | H17: 780 | I17: 690 | J17: =SUM(H$5:H16) -> 4480
A18: 14 | B18: 14 | C18: 2.3 | D18: 2.334 | E18: 1 | F18: 1 | G18: 1 | H18: 870 | I18: 720 | J18: =SUM(H$5:H17) -> 5260
A19: 15 | B19: 15 | C19: 2.4 | D19: 2.4 | E19: 1 | F19: 1 | G19: 1 | H19: 960 | I19: 750 | J19: =SUM(H$5:H18) -> 6130
A20: 16 | B20: 16 | C20: 2.5 | D20: 2.534 | E20: 1 | F20: 1 | G20: 1 | H20: 1060 | I20: 780 | J20: =SUM(H$5:H19) -> 7090
A21: 17 | B21: 17 | C21: 2.6 | D21: 2.6 | E21: 1 | F21: 1 | G21: 1 | H21: 1170 | I21: 810 | J21: =SUM(H$5:H20) -> 8150
A22: 18 | B22: 18 | C22: 2.7 | D22: 2.734 | E22: 1 | F22: 1 | G22: 1 | H22: 1280 | I22: 840 | J22: =SUM(H$5:H21) -> 9320
A23: 19 | B23: 19 | C23: 2.8 | D23: 2.8 | E23: 1 | F23: 1 | G23: 1 | H23: 1390 | I23: 870 | J23: =SUM(H$5:H22) -> 10600
A24: 20 | B24: 20 | C24: 2.9 | D24: 2.934 | E24: 1 | F24: 1 | G24: 1 | H24: 1510 | I24: 900 | J24: =SUM(H$5:H23) -> 11990
A25: 21 | B25: 21 | C25: 3 | D25: 3 | E25: 1 | F25: 1 | G25: 1 | H25: 1640 | I25: 930 | J25: =SUM(H$5:H24) -> 13500
A26: 22 | B26: 22 | C26: 3.1 | D26: 3.134 | E26: 1 | F26: 1 | G26: 1 | H26: 1770 | I26: 960 | J26: =SUM(H$5:H25) -> 15140
A27: 23 | B27: 23 | C27: 3.2 | D27: 3.2 | E27: 1 | F27: 1 | G27: 1 | H27: 1910 | I27: 990 | J27: =SUM(H$5:H26) -> 16910
A28: 24 | B28: 24 | C28: 3.3 | D28: 3.334 | E28: 1 | F28: 1 | G28: 1 | H28: 2060 | I28: 1020 | J28: =SUM(H$5:H27) -> 18820
A29: 25 | B29: 25 | C29: 3.4 | D29: 3.4 | E29: 1 | F29: 1 | G29: 1 | H29: 2210 | I29: 1050 | J29: =SUM(H$5:H28) -> 20880
A30: 26 | B30: 26 | C30: 3.5 | D30: 3.534 | E30: 1 | F30: 1 | G30: 1 | H30: 2370 | I30: 1080 | J30: =SUM(H$5:H29) -> 23090
A31: 27 | B31: 27 | C31: 3.6 | D31: 3.6 | E31: 1 | F31: 1 | G31: 1 | H31: 2540 | I31: 1110 | J31: =SUM(H$5:H30) -> 25460
A32: 28 | B32: 28 | C32: 3.7 | D32: 3.734 | E32: 1 | F32: 1 | G32: 1 | H32: 2710 | I32: 1140 | J32: =SUM(H$5:H31) -> 28000
A33: 29 | B33: 29 | C33: 3.8 | D33: 3.8 | E33: 1 | F33: 1 | G33: 1 | H33: 2890 | I33: 1170 | J33: =SUM(H$5:H32) -> 30710
A34: 30 | B34: 30 | C34: 3.9 | D34: 3.934 | E34: 1 | F34: 1 | G34: 1 | H34: 3080 | I34: 1200 | J34: =SUM(H$5:H33) -> 33600
A35: 31 | B35: 31 | C35: 4 | D35: 4 | E35: 1 | F35: 1 | G35: 1 | H35: 3280 | I35: 1230 | J35: =SUM(H$5:H34) -> 36680
A36: 32 | B36: 32 | C36: 4.1 | D36: 4.134 | E36: 1 | F36: 1 | G36: 1 | H36: 3480 | I36: 1260 | J36: =SUM(H$5:H35) -> 39960
A37: 33 | B37: 33 | C37: 4.2 | D37: 4.2 | E37: 1 | F37: 1 | G37: 1 | H37: 3680 | I37: 1290 | J37: =SUM(H$5:H36) -> 43440
A38: 34 | B38: 34 | C38: 4.3 | D38: 4.334 | E38: 1 | F38: 1 | G38: 1 | H38: 3900 | I38: 1320 | J38: =SUM(H$5:H37) -> 47120
A39: 35 | B39: 35 | C39: 4.4 | D39: 4.4 | E39: 1 | F39: 1 | G39: 1 | H39: 4120 | I39: 1350 | J39: =SUM(H$5:H38) -> 51020
A40: 36 | B40: 36 | C40: 4.5 | D40: 4.534 | E40: 1 | F40: 1 | G40: 1 | H40: 4350 | I40: 1380 | J40: =SUM(H$5:H39) -> 55140
A41: 37 | B41: 37 | C41: 4.6 | D41: 4.6 | E41: 1 | F41: 1 | G41: 1 | H41: 4590 | I41: 1410 | J41: =SUM(H$5:H40) -> 59490
A42: 38 | B42: 38 | C42: 4.7 | D42: 4.734 | E42: 1 | F42: 1 | G42: 1 | H42: 4840 | I42: 1440 | J42: =SUM(H$5:H41) -> 64080
A43: 39 | B43: 39 | C43: 4.8 | D43: 4.8 | E43: 1 | F43: 1 | G43: 1 | H43: 5090 | I43: 1470 | J43: =SUM(H$5:H42) -> 68920
A44: 40 | B44: 40 | C44: 4.9 | D44: 4.866 | E44: 1 | F44: 1 | G44: 1 | H44: 5350 | I44: 1500 | J44: =SUM(H$5:H43) -> 74010
A45: 41 | B45: 41 | C45: 5 | D45: 5 | E45: 1 | F45: 1 | G45: 1 | H45: 5620 | I45: 1530 | J45: =SUM(H$5:H44) -> 79360
A46: 42 | B46: 42 | C46: 5.1 | D46: 5.066 | E46: 1 | F46: 1 | G46: 1 | H46: 5890 | I46: 1560 | J46: =SUM(H$5:H45) -> 84980
A47: 43 | B47: 43 | C47: 5.2 | D47: 5.2 | E47: 1 | F47: 1 | G47: 1 | H47: 6180 | I47: 1590 | J47: =SUM(H$5:H46) -> 90870
A48: 44 | B48: 44 | C48: 5.3 | D48: 5.266 | E48: 1 | F48: 1 | G48: 1 | H48: 6470 | I48: 1620 | J48: =SUM(H$5:H47) -> 97050
A49: 45 | B49: 45 | C49: 5.4 | D49: 5.4 | E49: 1 | F49: 1 | G49: 1 | H49: 6770 | I49: 1650 | J49: =SUM(H$5:H48) -> 103520
A50: 46 | B50: 46 | C50: 5.5 | D50: 5.466 | E50: 1 | F50: 1 | G50: 1 | H50: 7080 | I50: 1680 | J50: =SUM(H$5:H49) -> 110290
A51: 47 | B51: 47 | C51: 5.6 | D51: 5.6 | E51: 1 | F51: 1 | G51: 1 | H51: 7400 | I51: 1710 | J51: =SUM(H$5:H50) -> 117370
A52: 48 | B52: 48 | C52: 5.7 | D52: 5.666 | E52: 1 | F52: 1 | G52: 1 | H52: 7720 | I52: 1740 | J52: =SUM(H$5:H51) -> 124770
A53: 49 | B53: 49 | C53: 5.8 | D53: 5.8 | E53: 1 | F53: 1 | G53: 1 | H53: 8060 | I53: 1770 | J53: =SUM(H$5:H52) -> 132490
A54: 50 | B54: 50 | C54: 5.9 | D54: 6.16 | E54: 1 | F54: 1 | G54: 1 | H54: 8400 | I54: 1800 | J54: =SUM(H$5:H53) -> 140550
A55: 51 | B55: 51 | C55: 6 | D55: 6.3 | E55: 1 | F55: 1 | G55: 1 | H55: 8750 | I55: 1830 | J55: =SUM(H$5:H54) -> 148950
A56: 52 | B56: 52 | C56: 6.1 | D56: 6.37 | E56: 1 | F56: 1 | G56: 1 | H56: 9110 | I56: 1860 | J56: =SUM(H$5:H55) -> 157700
A57: 53 | B57: 53 | C57: 6.2 | D57: 6.51 | E57: 1 | F57: 1 | G57: 1 | H57: 9470 | I57: 1890 | J57: =SUM(H$5:H56) -> 166810
A58: 54 | B58: 54 | C58: 6.3 | D58: 6.58 | E58: 1 | F58: 1 | G58: 1 | H58: 9850 | I58: 1920 | J58: =SUM(H$5:H57) -> 176280
A59: 55 | B59: 55 | C59: 6.4 | D59: 6.72 | E59: 1 | F59: 1 | G59: 1 | H59: 10240 | I59: 1950 | J59: =SUM(H$5:H58) -> 186130
A60: 56 | B60: 56 | C60: 6.5 | D60: 6.79 | E60: 1 | F60: 1 | G60: 1 | H60: 10630 | I60: 1980 | J60: =SUM(H$5:H59) -> 196370
A61: 57 | B61: 57 | C61: 6.6 | D61: 6.93 | E61: 1 | F61: 1 | G61: 1 | H61: 11030 | I61: 2010 | J61: =SUM(H$5:H60) -> 207000
A62: 58 | B62: 58 | C62: 6.7 | D62: 7.07 | E62: 1 | F62: 1 | G62: 1 | H62: 11440 | I62: 2040 | J62: =SUM(H$5:H61) -> 218030
A63: 59 | B63: 59 | C63: 6.8 | D63: 7.14 | E63: 1 | F63: 1 | G63: 1 | H63: 11860 | I63: 2070 | J63: =SUM(H$5:H62) -> 229470
A64: 60 | B64: 60 | C64: 6.9 | D64: 7.28 | E64: 1 | F64: 1 | G64: 1 | H64: 12290 | I64: 2100 | J64: =SUM(H$5:H63) -> 241330
A65: 61 | B65: 61 | C65: 7 | D65: 7.35 | E65: 1 | F65: 1 | G65: 1 | H65: 12730 | I65: 2130 | J65: =SUM(H$5:H64) -> 253620
A66: 62 | B66: 62 | C66: 7.1 | D66: 7.49 | E66: 1 | F66: 1 | G66: 1 | H66: 13180 | I66: 2160 | J66: =SUM(H$5:H65) -> 266350
A67: 63 | B67: 63 | C67: 7.2 | D67: 7.56 | E67: 1 | F67: 1 | G67: 1 | H67: 13640 | I67: 2190 | J67: =SUM(H$5:H66) -> 279530
A68: 64 | B68: 64 | C68: 7.3 | D68: 7.7 | E68: 1 | F68: 1 | G68: 1 | H68: 14100 | I68: 2220 | J68: =SUM(H$5:H67) -> 293170
A69: 65 | B69: 65 | C69: 7.4 | D69: 7.77 | E69: 1 | F69: 1 | G69: =E69 -> 1 | H69: 14580 | I69: 2250 | J69: =SUM(H$5:H68) -> 307270
A70: 66 | B70: 66 | C70: 7.5 | D70: 7.91 | E70: 1 | F70: 1 | G70: 1 | H70: =IF(B70>99,0,ROUND(100*C71^M$4*0.1,0)*10) -> 15070 | I70: =ROUND(300*C71,0) -> 2280 | J70: =SUM(H$5:H69) -> 321850
A71: 67 | B71: 67 | C71: 7.6 | D71: 7.98 | E71: 1 | F71: 1 | G71: 1 | H71: 15560 | I71: 2310 | J71: =SUM(H$5:H70) -> 336920
A72: 68 | B72: 68 | C72: 7.7 | D72: 8.12 | E72: 1 | F72: 1 | G72: 1 | H72: 16070 | I72: 2340 | J72: =SUM(H$5:H71) -> 352480
A73: 69 | B73: 69 | C73: 7.8 | D73: 8.19 | E73: 1 | F73: 1 | G73: 1 | H73: 16580 | I73: 2370 | J73: =SUM(H$5:H72) -> 368550
A74: 70 | B74: 70 | C74: 7.9 | D74: 8.33 | E74: 1 | F74: 1 | G74: 1 | H74: 17100 | I74: 2400 | J74: =SUM(H$5:H73) -> 385130
A75: 71 | B75: 71 | C75: 8 | D75: 8.4 | E75: 1 | F75: 1 | G75: 1 | H75: 17640 | I75: 2430 | J75: =SUM(H$5:H74) -> 402230
A76: 72 | B76: 72 | C76: 8.1 | D76: 8.54 | E76: 1 | F76: 1 | G76: 1 | H76: 18180 | I76: 2460 | J76: =SUM(H$5:H75) -> 419870
A77: 73 | B77: 73 | C77: 8.2 | D77: 8.61 | E77: 1 | F77: 1 | G77: 1 | H77: 18730 | I77: 2490 | J77: =SUM(H$5:H76) -> 438050
A78: 74 | B78: 74 | C78: 8.3 | D78: 8.75 | E78: 1 | F78: 1 | G78: 1 | H78: 19300 | I78: 2520 | J78: =SUM(H$5:H77) -> 456780
A79: 75 | B79: 75 | C79: 8.4 | D79: 8.82 | E79: 1 | F79: 1 | G79: 1 | H79: 19870 | I79: 2550 | J79: =SUM(H$5:H78) -> 476080
A80: 76 | B80: 76 | C80: 8.5 | D80: 8.96 | E80: 1 | F80: 1 | G80: 1 | H80: 20450 | I80: 2580 | J80: =SUM(H$5:H79) -> 495950
A81: 77 | B81: 77 | C81: 8.6 | D81: 9.03 | E81: 1 | F81: 1 | G81: 1 | H81: 21050 | I81: 2610 | J81: =SUM(H$5:H80) -> 516400
A82: 78 | B82: 78 | C82: 8.7 | D82: 9.17 | E82: 1 | F82: 1 | G82: 1 | H82: 21650 | I82: 2640 | J82: =SUM(H$5:H81) -> 537450
A83: 79 | B83: 79 | C83: 8.8 | D83: 9.24 | E83: 1 | F83: 1 | G83: 1 | H83: 22260 | I83: 2670 | J83: =SUM(H$5:H82) -> 559100
A84: 80 | B84: 80 | C84: 8.9 | D84: 9.38 | E84: 1 | F84: 1 | G84: 1 | H84: 22890 | I84: 2700 | J84: =SUM(H$5:H83) -> 581360
A85: 81 | B85: 81 | C85: 9 | D85: 9.45 | E85: 1 | F85: 1 | G85: 1 | H85: 23520 | I85: 2730 | J85: =SUM(H$5:H84) -> 604250
A86: 82 | B86: 82 | C86: 9.1 | D86: 9.59 | E86: 1 | F86: 1 | G86: 1 | H86: 24160 | I86: 2760 | J86: =SUM(H$5:H85) -> 627770
A87: 83 | B87: 83 | C87: 9.2 | D87: 9.66 | E87: 1 | F87: 1 | G87: 1 | H87: 24820 | I87: 2790 | J87: =SUM(H$5:H86) -> 651930
A88: 84 | B88: 84 | C88: 9.3 | D88: 9.8 | E88: 1 | F88: 1 | G88: 1 | H88: 25480 | I88: 2820 | J88: =SUM(H$5:H87) -> 676750
A89: 85 | B89: 85 | C89: 9.4 | D89: 9.87 | E89: 1 | F89: 1 | G89: 1 | H89: 26160 | I89: 2850 | J89: =SUM(H$5:H88) -> 702230
A90: 86 | B90: 86 | C90: 9.5 | D90: 10.01 | E90: 1 | F90: 1 | G90: 1 | H90: 26850 | I90: 2880 | J90: =SUM(H$5:H89) -> 728390
A91: 87 | B91: 87 | C91: 9.6 | D91: 10.08 | E91: 1 | F91: 1 | G91: 1 | H91: 27540 | I91: 2910 | J91: =SUM(H$5:H90) -> 755240
A92: 88 | B92: 88 | C92: 9.7 | D92: 10.22 | E92: 1 | F92: 1 | G92: 1 | H92: 28250 | I92: 2940 | J92: =SUM(H$5:H91) -> 782780
A93: 89 | B93: 89 | C93: 9.8 | D93: 10.29 | E93: 1 | F93: 1 | G93: 1 | H93: 28970 | I93: 2970 | J93: =SUM(H$5:H92) -> 811030
A94: 90 | B94: 90 | C94: 9.9 | D94: 10.43 | E94: 1 | F94: 1 | G94: 1 | H94: 29700 | I94: 3000 | J94: =SUM(H$5:H93) -> 840000
A95: 91 | B95: 91 | C95: 10 | D95: 10.5 | E95: 1 | F95: 1 | G95: 1 | H95: 30440 | I95: 3030 | J95: =SUM(H$5:H94) -> 869700
A96: 92 | B96: 92 | C96: 10.1 | D96: 10.64 | E96: 1 | F96: 1 | G96: 1 | H96: 31190 | I96: 3060 | J96: =SUM(H$5:H95) -> 900140
A97: 93 | B97: 93 | C97: 10.2 | D97: 10.71 | E97: 1 | F97: 1 | G97: 1 | H97: 31950 | I97: 3090 | J97: =SUM(H$5:H96) -> 931330
A98: 94 | B98: 94 | C98: 10.3 | D98: 10.85 | E98: 1 | F98: 1 | G98: 1 | H98: 32720 | I98: 3120 | J98: =SUM(H$5:H97) -> 963280
A99: 95 | B99: 95 | C99: 10.4 | D99: 10.92 | E99: 1 | F99: 1 | G99: 1 | H99: 33510 | I99: 3150 | J99: =SUM(H$5:H98) -> 996000
A100: 96 | B100: 96 | C100: 10.5 | D100: 11.06 | E100: 1 | F100: 1 | G100: 1 | H100: 34300 | I100: 3180 | J100: =SUM(H$5:H99) -> 1029510
A101: 97 | B101: 97 | C101: 10.6 | D101: 11.13 | E101: 1 | F101: 1 | G101: 1 | H101: 35110 | I101: 3210 | J101: =SUM(H$5:H100) -> 1063810
A102: 98 | B102: 98 | C102: 10.7 | D102: 11.27 | E102: 1 | F102: 1 | G102: 1 | H102: 35920 | I102: 3240 | J102: =SUM(H$5:H101) -> 1098920
A103: 99 | B103: 99 | C103: 10.8 | D103: 11.34 | E103: 1 | F103: 1 | G103: 1 | H103: 36750 | I103: 3270 | J103: =SUM(H$5:H102) -> 1134840
A104: 100 | B104: 100 | C104: 10.9 | D104: 12.026 | E104: 1 | F104: 1 | G104: 1 | H104: =ROUND(100*C105^M$4*0.1,0)*10 -> 37590 | I104: 3300 | J104: =SUM(H$5:H103) -> 1171590
A105: 101 | B105: 101 | C105: 11 | D105: 12.1 | E105: 1 | F105: 1 | G105: 1 | H105: =ROUND(100*C106^M$4*0.1,0)*10 -> 38440 | I105: 3330
A106: 102 | B106: 102 | C106: 11.1 | D106: 12.246 | E106: 1 | F106: 1 | G106: 1 | H106: 39300 | I106: 3360
A107: 103 | B107: 103 | C107: 11.2 | D107: 12.32 | E107: 1 | F107: 1 | G107: 1 | H107: 40180 | I107: 3390
A108: 104 | B108: 104 | C108: 11.3 | D108: 12.466 | E108: 1 | F108: 1 | G108: 1 | H108: 41060 | I108: 3420
A109: 105 | B109: 105 | C109: 11.4 | D109: 12.54 | E109: 1 | F109: 1 | G109: 1 | H109: 41960 | I109: 3450
A110: 106 | B110: 106 | C110: 11.5 | D110: 12.686 | E110: 1 | F110: 1 | G110: 1 | H110: 42870 | I110: 3480
A111: 107 | B111: 107 | C111: 11.6 | D111: 12.76 | E111: 1 | F111: 1 | G111: 1 | H111: 43780 | I111: 3510
A112: 108 | B112: 108 | C112: 11.7 | D112: 12.906 | E112: 1 | F112: 1 | G112: 1 | H112: 44720 | I112: 3540
A113: 109 | B113: 109 | C113: 11.8 | D113: 12.98 | E113: 1 | F113: 1 | G113: 1 | H113: 45660 | I113: 3570
A114: 110 | B114: 110 | C114: 11.9 | D114: 13.126 | E114: 1 | F114: 1 | G114: 1 | H114: 46610 | I114: 3600
A115: 111 | B115: 111 | C115: 12 | D115: 13.2 | E115: 1 | F115: 1 | G115: 1 | H115: 47580 | I115: 3630
A116: 112 | B116: 112 | C116: 12.1 | D116: 13.346 | E116: 1 | F116: 1 | G116: 1 | H116: 48560 | I116: 3660
A117: 113 | B117: 113 | C117: 12.2 | D117: 13.42 | E117: 1 | F117: 1 | G117: 1 | H117: 49550 | I117: 3690
A118: 114 | B118: 114 | C118: 12.3 | D118: 13.566 | E118: 1 | F118: 1 | G118: 1 | H118: 50550 | I118: 3720
A119: 115 | B119: 115 | C119: 12.4 | D119: 13.64 | E119: 1 | F119: 1 | G119: 1 | H119: 51560 | I119: 3750
A120: 116 | B120: 116 | C120: 12.5 | D120: 13.786 | E120: 1 | F120: 1 | G120: 1 | H120: 52590 | I120: 3780
A121: 117 | B121: 117 | C121: 12.6 | D121: 13.86 | E121: 1 | F121: 1 | G121: 1 | H121: 53630 | I121: 3810
A122: 118 | B122: 118 | C122: 12.7 | D122: 14.006 | E122: 1 | F122: 1 | G122: 1 | H122: 54680 | I122: 3840
A123: 119 | B123: 119 | C123: 12.8 | D123: 14.08 | E123: 1 | F123: 1 | G123: 1 | H123: 55740 | I123: 3870
A124: 120 | B124: 120 | C124: 12.9 | D124: 14.226 | E124: 1 | F124: 1 | G124: 1 | H124: 56820 | I124: 3900
A125: 121 | B125: 121 | C125: 13 | D125: 14.3 | E125: 1 | F125: 1 | G125: 1 | H125: 57900 | I125: 3930
A126: 122 | B126: 122 | C126: 13.1 | D126: 14.446 | E126: 1 | F126: 1 | G126: 1 | H126: 59000 | I126: 3960
A127: 123 | B127: 123 | C127: 13.2 | D127: 14.52 | E127: 1 | F127: 1 | G127: 1 | H127: 60110 | I127: 3990
A128: 124 | B128: 124 | C128: 13.3 | D128: 14.666 | E128: 1 | F128: 1 | G128: 1 | H128: 61240 | I128: 4020
A129: 125 | B129: 125 | C129: 13.4 | D129: 14.74 | E129: 1 | F129: 1 | G129: 1 | H129: 62370 | I129: 4050
A130: 126 | B130: 126 | C130: 13.5 | D130: 14.886 | E130: 1 | F130: 1 | G130: 1 | H130: 63520 | I130: 4080
A131: 127 | B131: 127 | C131: 13.6 | D131: 14.96 | E131: 1 | F131: 1 | G131: 1 | H131: 64680 | I131: 4110
A132: 128 | B132: 128 | C132: 13.7 | D132: 15.106 | E132: 1 | F132: 1 | G132: 1 | H132: 65860 | I132: 4140
A133: 129 | B133: 129 | C133: 13.8 | D133: 15.18 | E133: 1 | F133: 1 | G133: =E133 -> 1 | H133: 67040 | I133: 4170
A134: 130 | B134: 130 | C134: 13.9 | D134: 15.326 | E134: 1 | F134: 1 | G134: =E134 -> 1 | H134: 68240 | I134: =ROUND(300*C135,0) -> 4200
A135: 131 | B135: 131 | C135: 14 | D135: 15.4 | E135: 1 | F135: 1 | G135: =E135 -> 1 | H135: 69450 | I135: =ROUND(300*C136,0) -> 4230
A136: 132 | B136: 132 | C136: 14.1 | D136: 15.546 | E136: 1 | F136: 1 | G136: 1 | H136: 70680 | I136: 4260
A137: 133 | B137: 133 | C137: 14.2 | D137: 15.62 | E137: 1 | F137: 1 | G137: 1 | H137: =ROUND(100*C138^M$4*0.1,0)*10 -> 71920 | I137: 4290
A138: 134 | B138: 134 | C138: 14.3 | D138: 15.766 | E138: 1 | F138: 1 | G138: 1 | H138: 73170 | I138: 4320
A139: 135 | B139: 135 | C139: 14.4 | D139: 15.84 | E139: 1 | F139: 1 | G139: 1 | H139: 74430 | I139: 4350
A140: 136 | B140: 136 | C140: 14.5 | D140: 15.986 | E140: 1 | F140: 1 | G140: 1 | H140: 75700 | I140: 4380
A141: 137 | B141: 137 | C141: 14.6 | D141: 16.06 | E141: 1 | F141: 1 | G141: 1 | H141: 76990 | I141: 4410
A142: 138 | B142: 138 | C142: 14.7 | D142: 16.206 | E142: 1 | F142: 1 | G142: 1 | H142: 78290 | I142: 4440
A143: 139 | B143: 139 | C143: 14.8 | D143: 16.28 | E143: 1 | F143: 1 | G143: 1 | H143: 79610 | I143: 4470
A144: 140 | B144: 140 | C144: 14.9 | D144: 16.426 | E144: 1 | F144: 1 | G144: 1 | H144: 80940 | I144: 4500
A145: 141 | B145: 141 | C145: 15 | D145: 16.5 | E145: 1 | F145: 1 | G145: 1 | H145: 82280 | I145: 4530
A146: 142 | B146: 142 | C146: 15.1 | D146: 16.646 | E146: 1 | F146: 1 | G146: 1 | H146: 83630 | I146: 4560
A147: 143 | B147: 143 | C147: 15.2 | D147: 16.72 | E147: 1 | F147: 1 | G147: 1 | H147: 85000 | I147: 4590
A148: 144 | B148: 144 | C148: 15.3 | D148: 16.866 | E148: 1 | F148: 1 | G148: 1 | H148: 86380 | I148: 4620
A149: 145 | B149: 145 | C149: 15.4 | D149: 16.94 | E149: 1 | F149: 1 | G149: 1 | H149: 87770 | I149: 4650
A150: 146 | B150: 146 | C150: 15.5 | D150: 17.086 | E150: 1 | F150: 1 | G150: 1 | H150: 89180 | I150: 4680
A151: 147 | B151: 147 | C151: 15.6 | D151: 17.16 | E151: 1 | F151: 1 | G151: 1 | H151: 90600 | I151: 4710
A152: 148 | B152: 148 | C152: 15.7 | D152: 17.306 | E152: 1 | F152: 1 | G152: 1 | H152: 92030 | I152: 4740
A153: 149 | B153: 149 | C153: 15.8 | D153: 17.38 | E153: 1 | F153: 1 | G153: 1 | H153: 93480 | I153: 4770
A154: 150 | B154: 150 | C154: 15.9 | D154: 18.324 | E154: 1 | F154: 1 | G154: 1 | H154: 94940 | I154: 4800
A155: 151 | B155: 151 | C155: 16 | D155: 18.4 | E155: 1 | F155: 1 | G155: 1 | H155: 96410 | I155: 4830
A156: 152 | B156: 152 | C156: 16.1 | D156: 18.554 | E156: 1 | F156: 1 | G156: 1 | H156: 97900 | I156: 4860
A157: 153 | B157: 153 | C157: 16.2 | D157: 18.63 | E157: 1 | F157: 1 | G157: 1 | H157: 99400 | I157: 4890
A158: 154 | B158: 154 | C158: 16.3 | D158: 18.784 | E158: 1 | F158: 1 | G158: 1 | H158: 100920 | I158: 4920
A159: 155 | B159: 155 | C159: 16.4 | D159: 18.86 | E159: 1 | F159: 1 | G159: 1 | H159: 102450 | I159: 4950
A160: 156 | B160: 156 | C160: 16.5 | D160: 19.014 | E160: 1 | F160: 1 | G160: 1 | H160: 103990 | I160: 4980
A161: 157 | B161: 157 | C161: 16.6 | D161: 19.09 | E161: 1 | F161: 1 | G161: 1 | H161: 105540 | I161: 5010
A162: 158 | B162: 158 | C162: 16.7 | D162: 19.244 | E162: 1 | F162: 1 | G162: 1 | H162: 107110 | I162: 5040
A163: 159 | B163: 159 | C163: 16.8 | D163: 19.32 | E163: 1 | F163: 1 | G163: 1 | H163: 108700 | I163: 5070
A164: 160 | B164: 160 | C164: 16.9 | D164: 19.474 | E164: 1 | F164: 1 | G164: 1 | H164: 110290 | I164: 5100
A165: 161 | B165: 161 | C165: 17 | D165: 19.55 | E165: 1 | F165: 1 | G165: 1 | H165: 111910 | I165: 5130
A166: 162 | B166: 162 | C166: 17.1 | D166: 19.704 | E166: 1 | F166: 1 | G166: 1 | H166: 113530 | I166: 5160
A167: 163 | B167: 163 | C167: 17.2 | D167: 19.78 | E167: 1 | F167: 1 | G167: =E167 -> 1 | H167: 115170 | I167: =ROUND(300*C168,0) -> 5190
A168: 164 | B168: 164 | C168: 17.3 | D168: 19.934 | E168: 1 | F168: 1 | G168: 1 | H168: 116820 | I168: 5220
A169: 165 | B169: 165 | C169: 17.4 | D169: 20.01 | E169: 1 | F169: 1 | G169: 1 | H169: =ROUND(100*C170^M$4*0.1,0)*10 -> 118490 | I169: 5250
A170: 166 | B170: 166 | C170: 17.5 | D170: 20.164 | E170: 1 | F170: 1 | G170: 1 | H170: 120170 | I170: 5280
A171: 167 | B171: 167 | C171: 17.6 | D171: 20.24 | E171: 1 | F171: 1 | G171: 1 | H171: 121870 | I171: 5310
A172: 168 | B172: 168 | C172: 17.7 | D172: 20.394 | E172: 1 | F172: 1 | G172: 1 | H172: 123580 | I172: 5340
A173: 169 | B173: 169 | C173: 17.8 | D173: 20.47 | E173: 1 | F173: 1 | G173: 1 | H173: 125300 | I173: 5370
A174: 170 | B174: 170 | C174: 17.9 | D174: 20.624 | E174: 1 | F174: 1 | G174: 1 | H174: 127040 | I174: 5400
A175: 171 | B175: 171 | C175: 18 | D175: 20.7 | E175: 1 | F175: 1 | G175: 1 | H175: 128790 | I175: 5430
A176: 172 | B176: 172 | C176: 18.1 | D176: 20.854 | E176: 1 | F176: 1 | G176: 1 | H176: 130560 | I176: 5460
A177: 173 | B177: 173 | C177: 18.2 | D177: 20.93 | E177: 1 | F177: 1 | G177: 1 | H177: 132340 | I177: 5490
A178: 174 | B178: 174 | C178: 18.3 | D178: 21.084 | E178: 1 | F178: 1 | G178: 1 | H178: 134130 | I178: 5520
A179: 175 | B179: 175 | C179: 18.4 | D179: 21.16 | E179: 1 | F179: 1 | G179: 1 | H179: 135940 | I179: 5550
A180: 176 | B180: 176 | C180: 18.5 | D180: 21.314 | E180: 1 | F180: 1 | G180: 1 | H180: 137770 | I180: 5580
A181: 177 | B181: 177 | C181: 18.6 | D181: 21.39 | E181: 1 | F181: 1 | G181: 1 | H181: 139610 | I181: 5610
A182: 178 | B182: 178 | C182: 18.7 | D182: 21.544 | E182: 1 | F182: 1 | G182: 1 | H182: 141460 | I182: 5640
A183: 179 | B183: 179 | C183: 18.8 | D183: 21.62 | E183: 1 | F183: 1 | G183: 1 | H183: 143330 | I183: 5670
A184: 180 | B184: 180 | C184: 18.9 | D184: 21.774 | E184: 1 | F184: 1 | G184: 1 | H184: 145210 | I184: 5700
A185: 181 | B185: 181 | C185: 19 | D185: 21.85 | E185: 1 | F185: 1 | G185: 1 | H185: 147110 | I185: 5730
A186: 182 | B186: 182 | C186: 19.1 | D186: 22.004 | E186: 1 | F186: 1 | G186: 1 | H186: 149020 | I186: 5760
A187: 183 | B187: 183 | C187: 19.2 | D187: 22.08 | E187: 1 | F187: 1 | G187: 1 | H187: 150950 | I187: 5790
A188: 184 | B188: 184 | C188: 19.3 | D188: 22.234 | E188: 1 | F188: 1 | G188: 1 | H188: 152890 | I188: 5820
A189: 185 | B189: 185 | C189: 19.4 | D189: 22.31 | E189: 1 | F189: 1 | G189: 1 | H189: 154840 | I189: 5850
A190: 186 | B190: 186 | C190: 19.5 | D190: 22.464 | E190: 1 | F190: 1 | G190: 1 | H190: 156810 | I190: 5880
A191: 187 | B191: 187 | C191: 19.6 | D191: 22.54 | E191: 1 | F191: 1 | G191: 1 | H191: 158800 | I191: 5910
A192: 188 | B192: 188 | C192: 19.7 | D192: 22.694 | E192: 1 | F192: 1 | G192: 1 | H192: 160800 | I192: 5940
A193: 189 | B193: 189 | C193: 19.8 | D193: 22.77 | E193: 1 | F193: 1 | G193: 1 | H193: 162820 | I193: 5970
A194: 190 | B194: 190 | C194: 19.9 | D194: 22.924 | E194: 1 | F194: 1 | G194: 1 | H194: 164850 | I194: 6000
A195: 191 | B195: 191 | C195: 20 | D195: 23 | E195: 1 | F195: 1 | G195: 1 | H195: 166890 | I195: 6030
A196: 192 | B196: 192 | C196: 20.1 | D196: 23.154 | E196: 1 | F196: 1 | G196: 1 | H196: 168950 | I196: 6060
A197: 193 | B197: 193 | C197: 20.2 | D197: 23.23 | E197: 1 | F197: 1 | G197: 1 | H197: 171030 | I197: 6090
A198: 194 | B198: 194 | C198: 20.3 | D198: 23.384 | E198: 1 | F198: 1 | G198: 1 | H198: 173120 | I198: 6120
A199: 195 | B199: 195 | C199: 20.4 | D199: 23.46 | E199: 1 | F199: 1 | G199: =E199 -> 1 | H199: 175230 | I199: =ROUND(300*C200,0) -> 6150
A200: 196 | B200: 196 | C200: 20.5 | D200: 23.614 | E200: 1 | F200: 1 | G200: 1 | H200: 177350 | I200: 6180
... 104 more rows
